fUSD/lending_fUSD_20260307
["ID","MTS","AMOUNT","RATE_DAILY","PERIOD"]
[407872855,1772862645512,-1000.0,0.00029983,2]
[407872856,1772862645521,-504.0,0.0003,16]
[407872857,1772862645530,-804.33398658,0.0003,7]
[407872858,1772862645543,-1591.89046,0.0003,120]
[407872859,1772862645552,-300.0,0.0003,120]
[407872860,1772862645561,-95000.0,0.0003,3]
[407872861,1772862645571,-5645.67722567,0.0003,120]
[407872862,1772862645580,-7523.9127835,0.0003,2]
[407872863,1772862645589,-175.28931458,0.0003,120]
[407872864,1772862645598,-150.0,0.0003,2]
[407872865,1772862645607,-150.0,0.0003,32]
[407872866,1772862645616,-180.0,0.0003,120]
[407872867,1772862645626,-191.770434,0.0003,7]
[407872868,1772862645635,-190.64,0.0003,22]
[407872869,1772862645646,-1500.0,0.0003,2]
[407872870,1772862645655,-154.279113,0.0003,7]
[407872871,1772862645665,-151.0,0.0003,7]
[407872872,1772862645674,-204.413711,0.0003,7]
[407872873,1772862645683,-151.00001,0.0003,7]
[407872874,1772862645692,-151.0,0.0003,7]
[407872875,1772862645702,-151.0,0.0003,7]
[407872876,1772862645711,-151.0,0.0003,7]
[407872877,1772862645720,-151.0,0.0003,7]
[407872878,1772862645729,-200.0,0.00030122,21]
[407872879,1772862645739,-2066.32682399,0.00030136,22]
[407872880,1772862645748,-391.83,0.00030137,2]
[407872881,1772862645757,-3095.0,0.00030137,120]
[407872883,1772862645767,-1000.0,0.00030257,7]
[407872884,1772862645776,-500.0,0.0003026,2]
[407872885,1772862645785,-197.95,0.00030411,120]
[407872886,1772862645794,-3000.0,0.00030412,14]
[407872887,1772862645804,-196.03,0.00030424,60]
[407872888,1772862645813,-1000.0,0.00030531,7]
[407872889,1772862645823,-200.0,0.00030705,17]
[407872891,1772862645832,-2000.0,0.000308,2]
[407872892,1772862645842,-1000.0,0.00030805,7]
[407872893,1772862645850,-184.82463117,0.00030859,6]
[407872894,1772862645859,-1155.22856453,0.00030859,2]
[407872895,1772862645868,-619.30230329,0.00030859,2]
[407872896,1772862645877,-759.19,0.0003092,30]
[407872897,1772862645886,-598.65,0.00031,7]
[407872898,1772862645896,-4767.81,0.00031,7]
[407872899,1772862645905,-2529.64612516,0.00031,30]
[407872900,1772862645914,-212.3,0.00031,4]
[407872901,1772862645923,-150.0,0.00031,34]
[407872902,1772862645932,-1000.0,0.00031079,7]
[407872903,1772862645942,-1661.0168505,0.00031305,2]
[407872904,1772862645951,-1000.0,0.00031353,7]
[407872905,1772862645960,-150.0,0.0003147,2]
[407872906,1772862645969,-1999.0,0.00031627,7]
[407872907,1772862645978,-3503.0,0.00031634,2]
[407872908,1772862645988,-1042.0,0.00031634,2]
[407872909,1772862645997,-1341.0,0.00031634,2]
[407872910,1772862646006,-619.0,0.00031634,2]
[407872911,1772862646016,-1279.0,0.00031634,2]
[407872912,1772862646025,-156.99274012,0.00031954,2]
[407872913,1772862646034,-1342.00694913,0.00031955,2]
[407872914,1772862646044,-179.35274886,0.00032,120]
[407872915,1772862646053,-223.88690886,0.00032,120]
[407872916,1772862646062,-196.00043953,0.00032,120]
[407872917,1772862646071,-203.38789639,0.00032,120]
[407872918,1772862646080,-166.83692375,0.00032,120]
[407872919,1772862646090,-257.644864,0.00032,120]
[407872920,1772862646099,-598.65,0.00032,7]
[407872921,1772862646108,-3005.711,0.00032,120]
[407872922,1772862646117,-150.0,0.00032,37]
[407872923,1772862646126,-326.68610731,0.00032,120]
[407872924,1772862646135,-1091.17,0.00032,120]
[407872925,1772862646144,-3000.0,0.00032056,14]
[407872926,1772862646153,-4767.81,0.000321,7]
[407872927,1772862646163,-200.0,0.00032201,23]
[407872929,1772862646173,-283.0,0.00032223,21]
[407872931,1772862646183,-825.0,0.00032396,60]
[407872933,1772862646193,-7000.0,0.00032463,7]
[407872935,1772862646203,-598.65,0.000328,7]
[407872938,1772862646213,-2000.0,0.00032877,2]
[407872940,1772862646222,-391.83,0.00032877,2]
[407872941,1772862646232,-4767.81,0.000329,14]
[407872943,1772862646242,-1058.68,0.000329,30]
[407872945,1772862646251,-500.0,0.00032999,2]
[407872946,1772862646261,-179.35274886,0.00033,120]
[407872947,1772862646271,-196.00043953,0.00033,120]
[407872949,1772862646280,-203.38789639,0.00033,120]
[407872950,1772862646290,-166.83692375,0.00033,120]
[407872951,1772862646299,-257.644864,0.00033,120]
[407872952,1772862646313,-2741.13127397,0.00033,120]
[407872953,1772862646323,-150.0,0.00033,40]
[407872954,1772862646334,-563.238527,0.00033,14]
[407872955,1772862646344,-326.68610731,0.00033,120]
[407872956,1772862646355,-151.0,0.00033001,7]
[407872957,1772862646365,-151.0,0.00033001,7]
[407872958,1772862646376,-150.0,0.00033043,2]
[407872959,1772862646386,-2000.0,0.00033425,2]
[407872960,1772862646397,-200.0,0.00033534,30]
[407872961,1772862646407,-2000.0,0.000337,30]
[407872962,1772862646421,-3000.0,0.000337,14]
[407872963,1772862646431,-759.19,0.00033855,30]
[407872964,1772862646441,-179.35274886,0.000339,120]
[407872965,1772862646452,-196.00043953,0.000339,120]
[407872966,1772862646463,-257.644864,0.000339,120]
[407872967,1772862646473,-598.65,0.000339,14]
[407872968,1772862646484,-4767.81,0.000339,14]
[407872969,1772862646493,-326.68610731,0.000339,120]
[407872970,1772862646503,-2000.0,0.00033973,2]
[407872971,1772862646513,-150.0,0.00034,43]
[407872972,1772862646523,-504.0,0.00034166,20]
[407872973,1772862646533,-400.0,0.000344,100]
[407872974,1772862646542,-2000.0,0.000345,2]
[407872975,1772862646552,-2000.0,0.00034521,2]
[407872976,1772862646563,-3503.0,0.00034634,2]
[407872977,1772862646572,-1042.0,0.00034634,2]
[407872978,1772862646582,-1341.0,0.00034634,2]
[407872979,1772862646592,-619.0,0.00034634,2]
[407872980,1772862646601,-922.93,0.00034634,2]
[407872981,1772862646611,-196.03,0.00034636,60]
[407872982,1772862646621,-150.0,0.00034696,2]
[407872983,1772862646630,-832.42,0.00034712,30]
[407872984,1772862646640,-452.89,0.00034712,30]
[407872985,1772862646650,-200.0,0.00034722,37]
[407872986,1772862646661,-1500.0,0.00034795,2]
[407872987,1772862646672,-598.65,0.000348,14]
[407872988,1772862646681,-4767.81,0.000348,14]
[407872989,1772862646692,-825.0,0.00034876,90]
[407872990,1772862646703,-1222.16710547,0.0003488,120]
[407872991,1772862646715,-156.99274012,0.00034968,2]
[407872992,1772862646727,-1342.00694913,0.00034969,2]
[407872993,1772862646738,-179.35274886,0.00035,120]
[407872994,1772862646748,-257.644864,0.00035,120]
[407872995,1772862646759,-850.86262463,0.00035,2]
[407872996,1772862646769,-150.0,0.00035,2]
[407872997,1772862646779,-2899.42796526,0.00035,30]
[407872998,1772862646788,-7477.73,0.00035,14]
[407872999,1772862646798,-150.0,0.00035,46]
[407873000,1772862646807,-326.68610731,0.00035,120]
[407873001,1772862646819,-184.0,0.00035068,10]
[407873002,1772862646829,-2000.0,0.00035069,2]
[407873003,1772862646840,-400.0,0.000352,100]
[407873004,1772862646851,-1091.17,0.000352,120]
[407873005,1772862646862,-2500.0,0.000353,14]
[407873006,1772862646872,-3000.0,0.00035344,14]
[407873007,1772862646881,-2464.524903,0.00035382,60]
[407873008,1772862646891,-179.72127976,0.00035589,120]
[407873009,1772862646900,-2154.14848279,0.00035616,7]
[407873010,1772862646911,-2154.14848279,0.00035616,7]
[407873011,1772862646922,-2154.14848279,0.00035616,7]
[407873012,1772862646932,-2154.14848279,0.00035616,7]
[407873013,1772862646942,-2154.14848279,0.00035616,7]
[407873014,1772862646951,-2154.14848279,0.00035616,7]
[407873015,1772862646961,-2154.14848279,0.00035616,7]
[407873016,1772862646971,-2154.14848279,0.00035616,7]
[407873017,1772862646980,-2154.14848279,0.00035616,7]
[407873018,1772862646990,-2154.14848279,0.00035616,7]
[407873019,1772862647000,-2154.14848279,0.00035616,7]
[407873020,1772862647010,-2154.14848279,0.00035616,7]
[407873021,1772862647020,-2154.14848279,0.00035616,7]
[407873022,1772862647029,-2154.14848279,0.00035616,7]
[407873023,1772862647040,-2154.14848279,0.00035616,7]
[407873024,1772862647055,-2154.14848279,0.00035616,7]
[407873025,1772862647069,-2154.14848279,0.00035616,7]
[407873026,1772862647080,-2154.14848279,0.00035616,7]
[407873027,1772862647090,-2173.73165081,0.00035616,7]
[407873028,1772862647100,-2173.73165081,0.00035616,7]
[407873029,1772862647111,-2173.73165081,0.00035616,7]
[407873030,1772862647121,-2173.73165081,0.00035616,7]
[407873031,1772862647131,-2173.73165081,0.00035616,7]
[407873032,1772862647141,-2173.73165081,0.00035616,7]
[407873033,1772862647150,-2173.73165081,0.00035616,7]
[407873034,1772862647160,-2173.73165081,0.00035616,7]
[407873035,1772862647170,-2173.73165081,0.00035616,7]
[407873036,1772862647180,-2173.73165081,0.00035616,7]
[407873037,1772862647190,-2173.73165081,0.00035616,7]
[407873038,1772862647201,-391.83,0.00035616,2]
[407873039,1772862647211,-151.0,0.00035616,7]
[407873040,1772862647222,-383.71244196,0.00035616,2]
[407873041,1772862647232,-2045.50626866,0.00035617,2]
[407873042,1772862647242,-598.65,0.000357,14]
[407873043,1772862647252,-4457.046383,0.00035712,60]
[407873044,1772862647262,-500.0,0.00035738,2]
[407873045,1772862647272,-200.0,0.00035781,39]
[407873046,1772862647281,-156714.44281744,0.00036,2]
[407873047,1772862647291,-179.35274886,0.00036,120]
[407873048,1772862647301,-257.644864,0.00036,120]
[407873049,1772862647310,-4767.81,0.00036,14]
[407873050,1772862647320,-432.0,0.00036,120]
[407873051,1772862647330,-2164.62210226,0.00036,10]
[407873052,1772862647340,-341.0,0.00036,120]
[407873053,1772862647350,-408.1958788,0.00036,2]
[407873054,1772862647360,-150.0,0.00036,49]
[407873055,1772862647370,-326.68610731,0.00036,120]
[407873056,1772862647380,-732.794215,0.00036,7]
[407873057,1772862647391,-732.794215,0.00036,7]
[407873058,1772862647401,-732.794215,0.00036,7]
[407873059,1772862647417,-732.794215,0.00036,7]
[407873060,1772862647427,-2777.72921,0.00036,7]
[407873061,1772862647437,-2777.72921,0.00036,7]
[407873062,1772862647447,-2777.72921,0.00036,7]
[407873063,1772862647456,-2777.72921,0.00036,7]
[407873064,1772862647466,-151.0,0.00036,7]
[407873065,1772862647477,-151.0,0.00036,7]
[407873066,1772862647488,-151.0,0.00036,7]
[407873067,1772862647498,-151.0,0.00036,7]
[407873068,1772862647508,-151.0,0.00036,7]
[407873069,1772862647518,-151.0,0.00036,7]
[407873070,1772862647528,-1636.945948,0.00036,7]
[407873071,1772862647538,-1636.945948,0.00036,7]
[407873072,1772862647549,-1636.945948,0.00036,7]
[407873073,1772862647559,-1636.945948,0.00036,7]
[407873074,1772862647568,-151.000006,0.00036,7]
[407873075,1772862647578,-153.308865,0.00036,7]
[407873076,1772862647588,-151.0,0.00036,7]
[407873077,1772862647598,-1483.703154,0.00036,7]
[407873078,1772862647608,-166.194497,0.00036,7]
[407873079,1772862647618,-1483.703154,0.00036,7]
[407873080,1772862647628,-1483.703154,0.00036,7]
[407873081,1772862647638,-1483.703154,0.00036,7]
[407873082,1772862647648,-278.58961,0.00036,7]
[407873083,1772862647657,-1251.58121,0.00036,7]
[407873084,1772862647667,-1251.58121,0.00036,7]
[407873085,1772862647677,-1251.58121,0.00036,7]
[407873086,1772862647687,-1251.58121,0.00036,7]
[407873087,1772862647697,-3760.036473,0.00036,30]
[407873088,1772862647706,-151.0,0.00036,7]
[407873089,1772862647716,-2323.020337,0.00036,7]
[407873090,1772862647725,-2323.020337,0.00036,7]
[407873091,1772862647735,-2323.020337,0.00036,7]
[407873092,1772862647744,-2323.020337,0.00036,7]
[407873093,1772862647754,-151.0,0.00036,7]
[407873094,1772862647764,-151.0,0.00036,7]
[407873095,1772862647774,-151.0,0.00036,7]
[407873096,1772862647784,-1405.42,0.0003635,10]
[407873097,1772862647794,-150.1,0.00036373,2]
[407873098,1772862647804,-150.1,0.00036373,2]
[407873099,1772862647815,-150.1,0.00036373,2]
[407873100,1772862647825,-150.1,0.00036373,2]
[407873101,1772862647838,-150.1,0.00036373,2]
[407873102,1772862647850,-150.1,0.00036373,2]
[407873103,1772862647859,-150.1,0.00036373,2]
[407873104,1772862647869,-171.50452806,0.00036373,2]
[407873105,1772862647880,-150.1,0.00036373,2]
[407873106,1772862647890,-150.1,0.00036373,2]
[407873107,1772862647900,-150.1,0.00036373,2]
[407873108,1772862647910,-150.1,0.00036373,2]
[407873109,1772862647921,-150.1,0.00036373,2]
[407873110,1772862647931,-150.1,0.00036373,2]
[407873111,1772862647942,-150.1,0.00036373,2]
[407873112,1772862647952,-150.1,0.00036373,2]
[407873113,1772862647964,-150.1,0.00036373,2]
[407873114,1772862647975,-150.1,0.00036373,2]
[407873115,1772862647987,-150.1,0.00036373,2]
[407873116,1772862647997,-150.1,0.00036373,2]
[407873117,1772862648009,-150.1,0.00036373,2]
[407873118,1772862648019,-150.1,0.00036373,2]
[407873119,1772862648029,-150.0,0.0003643,2]
[407873120,1772862648039,-1689.76074414,0.000367,120]
[407873121,1772862648050,-200.0,0.00036724,42]
[407873122,1772862648061,-759.19,0.00036791,30]
[407873123,1772862648071,-1252.52,0.00036828,10]
[407873124,1772862648081,-1801.35373223,0.000369,120]
[407873125,1772862648092,-409.58,0.000369,120]
[407873126,1772862648102,-1252.51,0.00036914,10]
[407873127,1772862648113,-3000.0,0.00036988,14]
[407873128,1772862648123,-223.0,0.00037,52]
[407873129,1772862648132,-1000.0,0.00037273,2]
[407873130,1772862648142,-1000.0,0.00037273,2]
[407873131,1772862648151,-1000.0,0.00037273,2]
[407873132,1772862648162,-1000.0,0.00037273,2]
[407873133,1772862648174,-1000.0,0.00037273,2]
[407873134,1772862648184,-825.0,0.00037355,90]
[407873135,1772862648194,-7000.0,0.00037463,7]
[407873136,1772862648204,-200.0,0.00037564,45]
[407873137,1772862648213,-3503.0,0.00037634,2]
[407873138,1772862648223,-1042.0,0.00037634,2]
[407873139,1772862648232,-1341.0,0.00037634,2]
[407873140,1772862648242,-619.0,0.00037634,2]
[407873141,1772862648252,-1444.0,0.00037753,120]
[407873142,1772862648261,-2800.0,0.0003788,120]
[407873143,1772862648271,-156.99274012,0.00037982,2]
[407873144,1772862648281,-1342.00694913,0.00037982,2]
[407873145,1772862648291,-500.0,0.00038,2]
[407873146,1772862648300,-3053.3505675,0.00038,120]
[407873147,1772862648310,-300.0,0.00038,120]
[407873148,1772862648319,-1752.83,0.00038,120]
[407873149,1772862648329,-3874.0,0.00038,120]
[407873150,1772862648339,-1197.13811136,0.000381,33]
[407873151,1772862648348,-262.41200169,0.000381,33]
[407873152,1772862648359,-2000.0,0.000382,2]
[407873153,1772862648369,-150.0,0.00038252,2]
[407873154,1772862648380,-200.0,0.00038313,50]
[407873155,1772862648390,-504.0,0.00038333,23]
[407873156,1772862648400,-3225.0,0.00038356,120]
[407873157,1772862648413,-10716.24,0.00038356,120]
[407873158,1772862648423,-380.742273,0.00038356,120]
[407873159,1772862648433,-380.742273,0.00038356,120]
[407873160,1772862648443,-380.742273,0.00038356,120]
[407873161,1772862648453,-380.742273,0.00038356,120]
[407873162,1772862648463,-175.794546,0.00038356,120]
[407873163,1772862648847,-1091.17,0.000384,120]
[407873164,1772862648871,-500.0,0.00038477,2]
[407873165,1772862648881,-1344.22696246,0.00038632,14]
[407873166,1772862648890,-624.3,0.00038831,120]
[407873167,1772862648899,-339.67,0.00038831,120]
[407873168,1772862648910,-196.03,0.00038848,90]
[407873169,1772862648919,-509.18787181,0.00038865,60]
[407873170,1772862648928,-10716.24,0.00038904,120]
[407873171,1772862648937,-214.0,0.0003891,30]
[407873172,1772862648947,-200.0,0.0003898,56]
[407873173,1772862648956,-979.368914,0.0003898,30]
[407873174,1772862648965,-1536.24219436,0.0003899,10]
[407873175,1772862648974,-2711.30835729,0.00039,120]
[407873176,1772862648983,-2267.14668715,0.00039,120]
[407873177,1772862648993,-2000.0,0.00039,120]
[407873178,1772862649002,-303.3,0.00039,2]
[407873179,1772862649011,-1794.37,0.00039226,2]
[407873180,1772862649020,-10716.24,0.00039452,120]
[407873181,1772862649030,-200.0,0.00039574,62]
[407873182,1772862649040,-2500.0,0.000396,30]
[407873183,1772862649049,-759.19,0.00039726,30]
[407873184,1772862649058,-825.0,0.00039834,90]
[407873185,1772862649067,-281.06736972,0.0003989,2]
[407873186,1772862649077,-200.0,0.0004,120]
[407873187,1772862649086,-3009.14060351,0.0004,60]
[407873188,1772862649096,-2142.0,0.0004,10]
[407873189,1772862649105,-329.01339421,0.0004,120]
[407873190,1772862649114,-7788.84740765,0.0004,120]
[407873191,1772862649124,-3160.46707643,0.0004,120]
[407873192,1772862649133,-1196.85661989,0.0004,120]
[407873193,1772862649143,-1444.80479239,0.0004,120]
[407873194,1772862649153,-1829.0,0.0004,120]
[407873195,1772862649162,-3086.28620732,0.0004,120]
[407873196,1772862649172,-151.0,0.0004,120]
[407873197,1772862649181,-1250.2045574,0.0004,120]
[407873198,1772862649191,-500.0,0.0004,120]
[407873199,1772862649201,-152.0,0.0004,120]
[407873200,1772862649210,-400.17359798,0.0004,10]
[407873201,1772862649220,-329.51147003,0.0004,10]
[407873202,1772862649229,-5063.2376849,0.0004,4]
[407873203,1772862649238,-1526.97356001,0.0004,120]
[407873204,1772862649248,-3210.13372369,0.0004,30]
[407873205,1772862649257,-3257.86731333,0.0004,120]
[407873206,1772862649267,-1396.29,0.0004,35]
[407873207,1772862649276,-1000.0,0.0004,2]
[407873208,1772862649286,-599.999998,0.0004,120]
[407873209,1772862649295,-13163.40677272,0.0004,4]
[407873210,1772862649304,-314.313884,0.0004,30]
[407873211,1772862649313,-10024.61961896,0.0004,7]
[407873212,1772862649323,-409.8274124,0.0004,14]
[407873213,1772862649332,-165.64649591,0.0004,120]
[407873214,1772862649341,-2500.0,0.0004,120]
[407873215,1772862649350,-2771.67,0.0004,120]
[407873216,1772862649359,-2001.79,0.0004,120]
[407873217,1772862649369,-1851.28,0.0004,120]
[407873218,1772862649378,-2500.0,0.0004,120]
[407873219,1772862649387,-2541.34,0.0004,120]
[407873220,1772862649398,-23969.0,0.0004,120]
[407873221,1772862649411,-812.71701612,0.0004,3]
[407873222,1772862649425,-406.13,0.0004,120]
[407873223,1772862649435,-321.4,0.0004,120]
[407873224,1772862649444,-675.03,0.0004,120]
[407873225,1772862649455,-157.37,0.0004,120]
[407873226,1772862649465,-224.69,0.0004,120]
[407873227,1772862649474,-10716.24,0.0004,120]
[407873228,1772862649487,-200.0,0.00040104,70]
[407873229,1772862649496,-150.0,0.00040165,2]
[407873230,1772862649505,-200.070751,0.00040245,10]
[407873231,1772862649515,-2500.0,0.000405,120]
[407873232,1772862649524,-10716.24,0.00040547,120]
[407873233,1772862649534,-200.0,0.00040576,78]
[407873234,1772862649543,-3503.0,0.00040634,2]
[407873235,1772862649552,-1042.0,0.00040634,2]
[407873236,1772862649562,-1341.0,0.00040634,2]
[407873237,1772862649571,-619.0,0.00040634,2]
[407873238,1772862649580,-151.0,0.00040697,14]
[407873239,1772862649590,-72526.08477607,0.000407,6]
[407873240,1772862649599,-5000.0,0.000408,60]
[407873241,1772862649608,-5000.0,0.000408,60]
[407873242,1772862649617,-151.0,0.000408,120]
[407873243,1772862649627,-5880.46290961,0.000409,120]
[407873244,1772862649636,-200.0,0.000409,14]
[407873245,1772862649645,-214.0,0.0004093,30]
[407873246,1772862649654,-81412.0,0.0004095,60]
[407873247,1772862649663,-1342.00694913,0.00040996,28]
[407873248,1772862649672,-156.99274012,0.00040996,28]
[407873249,1772862649682,-200.0,0.00040996,88]
[407873250,1772862649692,-2500.0,0.00041,20]
[407873251,1772862649701,-275.49,0.00041,120]
[407873252,1772862649710,-394.0,0.00041,30]
[407873253,1772862649720,-2395.62820092,0.00041,30]
[407873254,1772862649729,-598.65,0.00041,14]
[407873255,1772862649738,-3031.20548421,0.00041,60]
[407873256,1772862649747,-2318.152568,0.00041,120]
[407873257,1772862649756,-5640.18611271,0.00041,120]
[407873258,1772862649766,-827.48561557,0.00041,30]
[407873259,1772862649775,-151.0,0.00041,120]
[407873260,1772862649784,-152.0,0.00041,120]
[407873261,1772862649794,-1000.0,0.00041,120]
[407873262,1772862649803,-1481.86,0.00041,120]
[407873263,1772862649812,-151.0,0.00041,14]
[407873264,1772862649821,-155.55756851,0.00041068,22]
[407873265,1772862649831,-168.627957,0.00041081,120]
[407873266,1772862649843,-30000.0,0.00041081,2]
[407873267,1772862649853,-5512.48933057,0.00041081,3]
[407873268,1772862649864,-48871.2602152,0.00041081,5]
[407873269,1772862649874,-6449.2879002,0.0004109,120]
[407873270,1772862649885,-151.0,0.00041092,14]
[407873271,1772862649895,-151.5,0.00041094,2]
[407873272,1772862649905,-11179.77001639,0.00041095,15]
[407873273,1772862649915,-2635.90058162,0.00041095,31]
[407873274,1772862649926,-1000.0,0.00041095,2]
[407873275,1772862649935,-500.0,0.00041095,2]
[407873276,1772862649948,-1206.0,0.00041095,2]
[407873277,1772862649958,-7164.15159025,0.00041095,5]
[407873278,1772862649968,-500.0,0.00041095,60]
[407873279,1772862649978,-1000.0,0.00041095,2]
[407873280,1772862649987,-500.0,0.00041095,120]
[407873281,1772862649997,-500.0,0.00041095,120]
[407873282,1772862650006,-500.0,0.00041095,120]
[407873283,1772862650015,-500.0,0.00041095,120]
[407873284,1772862650024,-223.01475905,0.00041095,120]
[407873285,1772862650034,-500.0,0.00041095,120]
[407873286,1772862650043,-500.0,0.00041095,120]
[407873287,1772862650053,-500.0,0.00041095,120]
[407873288,1772862650062,-500.0,0.00041095,120]
[407873289,1772862650071,-500.0,0.00041095,120]
[407873290,1772862650080,-500.0,0.00041095,120]
[407873291,1772862650089,-500.0,0.00041095,120]
[407873292,1772862650099,-500.0,0.00041095,120]
[407873293,1772862650113,-500.0,0.00041095,120]
[407873294,1772862650122,-500.0,0.00041095,120]
[407873295,1772862650132,-500.0,0.00041095,120]
[407873296,1772862650142,-505.36210819,0.00041095,120]
[407873297,1772862650152,-500.0,0.00041095,120]
[407873298,1772862650162,-531.37666718,0.00041095,120]
[407873299,1772862650171,-500.0,0.00041095,120]
[407873300,1772862650181,-500.0,0.00041095,120]
[407873301,1772862650191,-500.0,0.00041095,120]
[407873302,1772862650200,-500.0,0.00041095,120]
[407873303,1772862650210,-500.0,0.00041095,120]
[407873304,1772862650220,-519.4310149,0.00041095,120]
[407873305,1772862650234,-500.0,0.00041095,120]
[407873306,1772862650243,-500.0,0.00041095,120]
[407873307,1772862650252,-500.0,0.00041095,120]
[407873308,1772862650260,-500.0,0.00041095,120]
[407873309,1772862650269,-539.61598238,0.00041095,120]
[407873310,1772862650279,-508.77338952,0.00041095,120]
[407873311,1772862650290,-500.0,0.00041095,120]
[407873312,1772862650300,-584.21090891,0.00041095,120]
[407873313,1772862650310,-500.0,0.00041095,120]
[407873314,1772862650320,-500.0,0.00041095,120]
[407873315,1772862650330,-500.0,0.00041095,120]
[407873316,1772862650340,-751.54,0.00041095,120]
[407873317,1772862650350,-510.04967766,0.00041095,30]
[407873318,1772862650360,-622.90629873,0.00041095,120]
[407873319,1772862650370,-531.02038824,0.00041095,120]
[407873320,1772862650380,-532.58990252,0.00041095,120]
[407873321,1772862650391,-571.84725112,0.00041095,120]
[407873322,1772862650400,-526.72414594,0.00041095,120]
[407873323,1772862650414,-500.0,0.00041095,120]
[407873324,1772862650424,-500.0,0.00041095,120]
[407873325,1772862650434,-518.76500707,0.00041095,120]
[407873326,1772862650443,-500.0,0.00041095,120]
[407873327,1772862650455,-515.542981,0.00041095,120]
[407873328,1772862650465,-525.81637826,0.00041095,120]
[407873329,1772862650475,-500.0,0.00041095,120]
[407873330,1772862650487,-548.10738622,0.00041095,120]
[407873331,1772862650497,-500.0,0.00041095,120]
[407873332,1772862650507,-523.2103096,0.00041095,120]
[407873333,1772862650517,-500.0,0.00041095,120]
[407873334,1772862650527,-521.05145295,0.00041095,120]
[407873335,1772862650537,-535.99114604,0.00041095,120]
[407873336,1772862650547,-500.0,0.00041095,120]
[407873337,1772862650557,-518.42431538,0.00041095,120]
[407873338,1772862650566,-500.0,0.00041095,120]
[407873339,1772862650575,-500.0,0.00041095,120]
[407873340,1772862650586,-500.0,0.00041095,120]
[407873341,1772862650595,-500.0,0.00041095,120]
[407873342,1772862650605,-608.97749151,0.00041095,120]
[407873343,1772862650614,-517.13561854,0.00041095,120]
[407873344,1772862650623,-500.0,0.00041095,120]
[407873345,1772862650632,-500.0,0.00041095,120]
[407873346,1772862650642,-500.0,0.00041095,120]
[407873347,1772862650651,-500.0,0.00041095,120]
[407873348,1772862650660,-500.0,0.00041095,120]
[407873349,1772862650669,-500.0,0.00041095,120]
[407873350,1772862650679,-500.0,0.00041095,120]
[407873351,1772862650688,-500.0,0.00041095,120]
[407873352,1772862650698,-500.0,0.00041095,120]
[407873353,1772862650707,-500.0,0.00041095,120]
[407873354,1772862650717,-500.0,0.00041095,120]
[407873355,1772862650726,-500.0,0.00041095,30]
[407873356,1772862650736,-1328.04049629,0.00041095,60]
[407873357,1772862650745,-500.0,0.00041095,120]
[407873358,1772862650754,-500.0,0.00041095,120]
[407873359,1772862650764,-500.0,0.00041095,120]
[407873360,1772862650773,-582.17517897,0.00041095,120]
[407873361,1772862650782,-500.0,0.00041095,120]
[407873362,1772862650791,-500.0,0.00041095,120]
[407873363,1772862650802,-500.0,0.00041095,120]
[407873364,1772862650811,-500.0,0.00041095,120]
[407873365,1772862650820,-551.5748738,0.00041095,120]
[407873366,1772862650830,-500.0,0.00041095,120]